[Event "ONJK 2024 ABC"]
[Site "Velp, Netherlands"]
[Date "2024.08.06"]
[Round "6.16"]
[White "De Wit, Evan"]
[Black "Burger, Dominick"]
[Result "1/2-1/2"]
[TimeControl "90 minutes + 30 seconds"]
[WhiteElo "1782"]
[BlackElo "1686"]

1. d4 {[%clk 01:30:58]} Nf6 {[%clk 01:30:38]} {[%emt 00:00:23]} 2. Bg5 {[%clk
01:31:26]} h6 {[%clk 01:30:27]} {[%emt 00:00:42]} 3. Bxf6 {[%clk 01:31:47]}
{[%emt 00:00:08]} exf6 {[%clk 01:30:52]} {[%emt 00:00:07]} 4. e3 {[%clk
01:32:06]} {[%emt 00:00:10]} Bb4+ {[%clk 01:30:59]} {[%emt 00:00:24]} 5. c3
{[%clk 01:32:29]} {[%emt 00:00:06]} Ba5 {[%clk 01:31:13]} {[%emt 00:00:16]} 6.
Nf3 {[%clk 01:32:51]} {[%emt 00:00:08]} d5 {[%clk 01:31:23]} {[%emt 00:00:21]}
7. Bd3 {[%clk 01:33:14]} {[%emt 00:00:06]} c6 {[%clk 01:29:57]} {[%emt
00:01:57]} 8. O-O {[%clk 01:33:26]} {[%emt 00:00:17]} O-O {[%clk 01:30:11]}
{[%emt 00:00:17]} 9. h3 {[%clk 01:33:48]} {[%emt 00:00:07]} Nd7 {[%clk
01:28:10]} {[%emt 00:02:32]} 10. c4 {[%clk 01:33:42]} {[%emt 00:00:36]} Nb6
{[%emt 00:02:51]} 11. c5 {[%clk 01:33:14]} {[%emt 00:00:56]} Nc4 {[%clk
01:25:18]} {[%emt 00:01:03]} 12. b3 {[%clk 01:33:32]} {[%emt 00:00:12]} Nb2
{[%clk 01:25:36]} {[%emt 00:00:12]} 13. Qe2 {[%clk 01:32:20]} {[%emt 00:01:40]}
Nxd3 {[%clk 01:24:43]} {[%emt 00:01:24]} 14. Qxd3 {[%clk 01:32:44]} {[%emt
00:00:06]} Bc7 {[%clk 01:23:09]} {[%emt 00:02:05]} 15. Nc3 {[%clk 01:32:47]}
{[%emt 00:00:26]} Be6 {[%clk 01:22:08]} {[%emt 00:01:31]} 16. Nd2 {[%clk
01:21:18]} {[%emt 00:11:59]} Qd7 {[%clk 01:21:43]} {[%emt 00:00:55]} 17. f4
{[%clk 01:21:27]} {[%emt 00:00:20]} Bf5 {[%clk 01:21:43]} {[%emt 00:00:29]} 18.
Qe2 {[%clk 01:21:21]} {[%emt 00:00:34]} Rfe8 {[%clk 01:21:28]} {[%emt
00:00:49]} 19. g4 {[%clk 01:20:08]} {[%emt 00:01:43]} Bh7 {[%clk 01:21:39]}
{[%emt 00:00:19]} 20. f5 {[%clk 01:19:23]} {[%emt 00:01:15]} b6 {[%clk
01:20:34]} {[%emt 00:01:36]} 21. b4 {[%clk 01:18:59]} {[%emt 00:00:53]} a5
{[%clk 01:20:44]} {[%emt 00:00:20]} 22. a3 {[%clk 01:19:01]} {[%emt 00:00:28]}
axb4 {[%clk 01:21:07]} {[%emt 00:00:07]} 23. axb4 {[%clk 01:19:24]} {[%emt
00:00:07]} Rxa1 {[%clk 01:21:32]} {[%emt 00:00:06]} 24. Rxa1 {[%clk 01:19:32]}
{[%emt 00:00:22]} bxc5 {[%clk 01:21:58]} {[%emt 00:00:04]} 25. bxc5 {[%clk
01:19:00]} {[%emt 00:01:02]} Bf4 {[%clk 01:22:21]} {[%emt 00:00:05]} 26. Nf1
{[%clk 01:16:30]} {[%emt 00:03:01]} Bxf5 {[%clk 01:22:13]} {[%emt 00:00:39]} 27.
gxf5 {[%clk 01:15:14]} {[%emt 00:01:46]} Qxf5 {[%clk 01:22:23]} {[%emt
00:00:20]} 28. Qf2 {[%clk 01:05:47]} {[%emt 00:09:56]} Qg5+ {[%clk 01:21:55]}
{[%emt 00:00:58]} 29. Qg2 {[%clk 01:04:47]} {[%emt 00:01:30]} Bxe3+ {[%clk
01:22:12]} {[%emt 00:00:14]} 30. Kh1 {[%clk 01:04:51]} {[%emt 00:00:26]} Qxg2+
{[%clk 01:22:21]} {[%emt 00:00:22]} 31. Kxg2 {[%clk 01:05:14]} {[%emt
00:00:06]} Bxd4 {[%clk 01:22:48]} {[%emt 00:00:04]} 32. Rc1 {[%clk 01:05:06]}
{[%emt 00:00:37]} Bxc3 {[%clk 01:18:58]} {[%emt 00:04:19]} 33. Rxc3 {[%clk
01:05:31]} {[%emt 00:00:06]} d4 {[%clk 01:19:19]} {[%emt 00:00:09]} 34. Rc4
{[%clk 01:05:07]} {[%emt 00:00:53]} Re5 {[%clk 01:18:33]} {[%emt 00:01:16]} 35.
Kf2 {[%clk 01:03:34]} {[%emt 00:02:04]} Rd5 {[%clk 01:17:52]} {[%emt 00:01:10]}
36. Ke2 {[%clk 01:02:39]} {[%emt 00:01:26]} g5 {[%clk 01:18:00]} {[%emt
00:00:22]} 37. Nd2 {[%clk 01:02:22]} {[%emt 00:00:47]} f5 {[%clk 01:18:01]}
{[%emt 00:00:29]} 38. Nf3 {[%clk 01:02:30]} {[%emt 00:00:21]} d3+ {[%clk
01:18:18]} {[%emt 00:00:13]} 39. Kd2 {[%clk 01:02:23]} {[%emt 00:00:37]} Kf8
{[%clk 01:16:27]} {[%emt 00:02:22]} 40. Nd4 {[%clk 01:02:46]} {[%emt 00:00:07]}
g4 {[%clk 01:15:52]} {[%emt 00:01:05]} 41. hxg4 {[%clk 01:01:42]} {[%emt
00:01:33]} fxg4 {[%clk 01:16:11]} {[%emt 00:00:12]} 42. Kxd3 {[%clk 01:02:06]}
{[%emt 00:00:06]} Ke7 {[%clk 01:14:38]} {[%emt 00:02:00]} 43. Ke4 {[%clk
01:01:47]} {[%emt 00:00:50]} Kd7 {[%clk 01:14:18]} {[%emt 00:00:51]} 44. Nf5
{[%clk 00:58:48]} {[%emt 00:03:31]} h5 {[%clk 01:13:25]} {[%emt 00:01:23]} 45.
Rd4 {[%clk 00:50:35]} {[%emt 00:08:42]} Rxd4+ {[%clk 01:13:09]} {[%emt
00:00:44]} 46. Nxd4 {[%clk 00:48:13]} {[%emt 00:02:55]} h4 {[%clk 01:12:22]}
{[%emt 00:01:17]} 47. Nf5 {[%clk 00:48:24]} {[%emt 00:00:18]} h3 {[%clk
01:11:50]} {[%emt 00:01:03]} 48. Ke5 {[%clk 00:46:32]} {[%emt 00:02:22]} h2
{[%clk 01:10:40]} {[%emt 00:01:40]} 49. Ng3 {[%clk 00:46:57]} {[%emt 00:00:05]}
Ke7 {[%clk 01:10:23]} {[%emt 00:00:47]} 50. Nf5+ {[%clk 00:39:19]} {[%emt
00:08:07]} Kd7 {[%clk 01:10:36]} {[%emt 00:00:18]} 51. Ng3 {[%clk 00:39:37]}
{[%emt 00:00:12]} Ke7 {[%clk 01:10:59]} {[%emt 00:00:05]} 1/2-1/2

[Event "ONJK 2024 ABC"]
[Site "Velp, Netherlands"]
[Date "2024.08.06"]
[Round "6.17"]
[White "Vogels, Mathijs"]
[Black "Zhao, Nick"]
[Result "0-1"]
[TimeControl "90 minutes + 30 seconds"]
[WhiteElo "1732"]
[BlackElo "1836"]

1. e4 {[%clk 01:30:54]} {[%emt 00:00:04]} e5 {[%clk 01:30:59]} {[%emt
00:00:03]} 2. Nf3 {[%clk 01:31:18]} {[%emt 00:00:06]} Nc6 {[%clk 01:31:26]}
{[%emt 00:00:04]} 3. Bc4 {[%clk 01:31:42]} {[%emt 00:00:05]} Nf6 {[%clk
01:31:51]} {[%emt 00:00:05]} 4. d3 {[%clk 01:32:06]} {[%emt 00:00:06]} Bc5
{[%clk 01:32:17]} {[%emt 00:00:04]} 5. Nc3 {[%clk 01:32:13]} {[%emt 00:00:23]}
d6 {[%clk 01:31:21]} {[%emt 00:01:26]} 6. h3 {[%clk 01:32:38]} {[%emt
00:00:04]} Na5 {[%clk 01:31:04]} {[%emt 00:00:48]} 7. Bb3 {[%clk 01:32:28]}
{[%emt 00:00:39]} Nxb3 {[%clk 01:29:20]} {[%emt 00:02:15]} 8. axb3 {[%clk
01:32:40]} {[%emt 00:00:17]} a6 {[%clk 01:27:26]} {[%emt 00:02:25]} 9. Be3
{[%clk 01:32:03]} {[%emt 00:01:07]} Bxe3 {[%clk 01:27:02]} {[%emt 00:00:53]} 10.
fxe3 {[%clk 01:32:27]} {[%emt 00:00:06]} O-O {[%clk 01:26:35]} {[%emt
00:00:58]} 11. O-O {[%clk 01:32:45]} {[%emt 00:00:12]} Re8 {[%clk 01:23:58]}
{[%emt 00:03:06]} 12. Qd2 {[%clk 01:30:25]} {[%emt 00:02:50]} b6 {[%clk
01:22:34]} {[%emt 00:01:54]} 13. Nd5 {[%clk 01:28:26]} {[%emt 00:02:29]} Bb7
{[%clk 01:11:41]} {[%emt 00:11:23]} 14. Nxf6+ {[%clk 01:27:26]} {[%emt
00:01:30]} Qxf6 {[%clk 01:12:04]} {[%emt 00:00:08]} 15. Nd4 {[%clk 01:24:57]}
{[%emt 00:02:58]} Qg5 {[%clk 01:09:28]} {[%emt 00:03:06]} 16. Nf3 {[%clk
01:24:09]} {[%emt 00:01:17]} Qh5 {[%clk 00:45:42]} {[%emt 00:24:18]} 17. Qc3
{[%clk 01:23:00]} {[%emt 00:01:39]} Re7 {[%clk 00:44:47]} {[%emt 00:01:25]} 18.
Qe1 {[%clk 01:20:02]} {[%emt 00:03:27]} g5 {[%clk 00:38:17]} {[%emt 00:07:01]}
19. Qg3 {[%clk 01:19:09]} {[%emt 00:01:22]} f6 {[%clk 00:31:57]} {[%emt
00:06:52]} 20. Nh2 {[%clk 01:19:04]} {[%emt 00:00:33]} Qg6 {[%clk 00:32:06]}
{[%emt 00:00:21]} 21. Rf2 {[%clk 01:17:12]} {[%emt 00:02:22]} h5 {[%clk
00:31:34]} {[%emt 00:01:02]} 22. Nf3 {[%clk 01:13:12]} {[%emt 00:04:30]} Rf8
{[%clk 00:26:43]} {[%emt 00:05:21]} 23. Nh4 {[%clk 01:13:04]} {[%emt 00:00:39]}
Qh7 {[%clk 00:25:15]} {[%emt 00:01:57]} 24. Nf5 {[%clk 01:13:06]} {[%emt
00:00:28]} Ref7 {[%clk 00:25:24]} {[%emt 00:00:21]} 25. Raf1 {[%clk 01:09:30]}
{[%emt 00:04:06]} Bc8 {[%clk 00:25:24]} {[%emt 00:00:31]} 26. Ra1 {[%clk
01:03:27]} {[%emt 00:06:32]} d5 {[%clk 00:24:27]} {[%emt 00:01:28]} 27. Qf3
{[%clk 01:00:11]} {[%emt 00:03:45]} dxe4 {[%clk 00:21:39]} {[%emt 00:03:18]} 28.
Qxe4 {[%clk 00:59:45]} {[%emt 00:00:56]} Bxf5 {[%clk 00:21:20]} {[%emt
00:00:49]} 29. Rxf5 {[%clk 00:59:14]} {[%emt 00:01:01]} a5 {[%clk 00:21:32]}
{[%emt 00:00:19]} 30. Raf1 {[%clk 00:59:33]} {[%emt 00:00:10]} Kg7 {[%clk
00:21:26]} {[%emt 00:00:36]} 31. Qc6 {[%clk 00:59:20]} {[%emt 00:00:42]} Qg6
{[%clk 00:21:16]} {[%emt 00:00:40]} 32. e4 {[%clk 00:58:51]} {[%emt 00:01:01]}
Rd8 {[%clk 00:17:56]} {[%emt 00:03:50]} 33. R1f3 {[%clk 00:42:04]} {[%emt
00:17:16]} Rd6 {[%clk 00:18:19]} {[%emt 00:00:08]} 34. Qc3 {[%clk 00:42:15]}
{[%emt 00:00:18]} Kf8 {[%clk 00:15:54]} {[%emt 00:02:56]} 35. Qc4 {[%clk
00:35:33]} {[%emt 00:07:11]} Ke8 {[%clk 00:10:20]} {[%emt 00:06:04]} 36. Qb5+
{[%clk 00:27:27]} {[%emt 00:08:34]} Kf8 {[%clk 00:09:11]} {[%emt 00:01:41]} 37.
b4 {[%clk 00:26:47]} {[%emt 00:01:09]} axb4 {[%clk 00:09:35]} {[%emt 00:00:06]}
38. Qxb4 {[%clk 00:27:11]} {[%emt 00:00:06]} Kg7 {[%clk 00:08:59]} {[%emt
00:01:07]} 39. Rg3 {[%clk 00:26:48]} {[%emt 00:00:52]} h4 {[%clk 00:09:13]}
{[%emt 00:00:17]} 40. Rg4 {[%clk 00:26:48]} {[%emt 00:00:29]} Rfd7 {[%clk
00:09:00]} {[%emt 00:00:44]} 41. Qd2 {[%clk 00:26:49]} {[%emt 00:00:27]} Kh7
{[%clk 00:07:48]} {[%emt 00:01:43]} 42. g3 {[%clk 00:24:48]} {[%emt 00:02:30]}
hxg3 {[%clk 00:08:11]} {[%emt 00:00:08]} 43. Rxg3 {[%clk 00:24:34]} {[%emt
00:00:43]} Qh5 {[%clk 00:07:29]} {[%emt 00:01:13]} 44. h4 {[%clk 00:20:17]}
{[%emt 00:04:47]} Qxh4 {[%clk 00:07:02]} {[%emt 00:00:57]} 45. Rg2 {[%clk
00:11:19]} {[%emt 00:09:28]} Kg8 {[%clk 00:06:16]} {[%emt 00:01:17]} 46. Qe2
{[%clk 00:09:53]} {[%emt 00:01:54]} Rh7 {[%clk 00:06:00]} {[%emt 00:00:47]} 47.
Rh2 {[%clk 00:08:40]} {[%emt 00:01:43]} Qxh2+ {[%emt 00:00:42]} 48. Qxh2 {[%clk
00:09:03]} {[%emt 00:00:04]} Rxh2 {[%clk 00:06:17]} {[%emt 00:00:04]} 49. Kxh2
{[%clk 00:09:26]} {[%emt 00:00:07]} Kf7 {[%clk 00:06:03]} {[%emt 00:00:45]} 50.
Kg3 {[%clk 00:09:32]} {[%emt 00:00:23]} Ke6 {[%clk 00:05:15]} {[%emt 00:01:18]}
51. Kg4 {[%clk 00:09:44]} {[%emt 00:00:19]} Rd8 {[%clk 00:05:22]} {[%emt
00:00:22]} 52. Rf2 {[%clk 00:08:32]} {[%emt 00:01:42]} c5 {[%clk 00:05:15]}
{[%emt 00:00:37]} 53. b3 {[%clk 00:05:02]} {[%emt 00:04:00]} b5 {[%clk
00:05:14]} {[%emt 00:00:31]} 54. Kf3 {[%clk 00:03:46]} {[%emt 00:01:45]} Rh8
{[%clk 00:04:26]} {[%emt 00:01:19]} 55. Ke2 {[%clk 00:02:32]} {[%emt 00:01:44]}
Rh3 {[%clk 00:04:00]} {[%emt 00:00:56]} 56. Kd2 {[%clk 00:02:44]} {[%emt
00:00:18]} Kf7 {[%clk 00:03:36]} {[%emt 00:00:54]} 57. Kc3 {[%clk 00:02:45]}
{[%emt 00:00:29]} g4 {[%clk 00:02:01]} {[%emt 00:02:06]} 58. Rg2 {[%clk
00:03:07]} {[%emt 00:00:07]} g3 {[%clk 00:02:01]} {[%emt 00:00:30]} 59. b4
{[%clk 00:03:25]} {[%emt 00:00:12]} cxb4+ {[%clk 00:01:16]} {[%emt 00:01:16]}
60. Kxb4 {[%clk 00:03:54]} Kg6 {[%clk 00:01:24]} {[%emt 00:00:21]} 61. Kxb5
{[%clk 00:04:14]} {[%emt 00:00:09]} Kg5 {[%clk 00:02:10]} {[%emt 00:04:48]} 62.
c4 {[%clk 00:02:42]} {[%emt 00:00:08]} Kf4 {[%clk 00:02:36]} {[%emt 00:00:04]}
63. c5 {[%clk 00:03:03]} {[%emt 00:00:09]} Kf3 {[%clk 00:02:56]} {[%emt
00:00:09]} 64. Rxg3+ {[%clk 00:03:08]} {[%emt 00:00:25]} Rxg3 {[%clk 00:03:12]}
{[%emt 00:00:14]} 65. Kc6 {[%clk 00:03:22]} {[%emt 00:00:16]} Kf4 {[%clk
00:03:08]} {[%emt 00:00:34]} 66. Kb7 {[%clk 00:02:59]} {[%emt 00:00:53]} Rxd3
{[%clk 00:03:26]} {[%emt 00:00:12]} 67. c6 {[%clk 00:03:15]} {[%emt 00:00:14]}
Kxe4 {[%clk 00:03:52]} {[%emt 00:00:05]} 68. c7 {[%clk 00:03:06]} {[%emt
00:00:38]} Rc3 {[%clk 00:04:19]} {[%emt 00:00:03]} 69. c8=Q {[%clk 00:03:01]}
{[%emt 00:00:34]} Rxc8 {[%clk 00:04:44]} {[%emt 00:00:07]} 70. Kxc8 {[%clk
00:03:17]} {[%emt 00:00:13]} f5 {[%clk 00:05:07]} {[%emt 00:00:07]} 71. Kd7
{[%clk 00:03:32]} {[%emt 00:00:16]} f4 {[%clk 00:05:31]} {[%emt 00:00:06]} 72.
Ke6 {[%clk 00:03:55]} {[%emt 00:00:06]} f3 {[%clk 00:05:46]} {[%emt 00:00:15]}
0-1

[Event "ONJK 2024 ABC"]
[Site "Velp, Netherlands"]
[Date "2024.08.06"]
[Round "6.18"]
[White "Meert, Maarin"]
[Black "Zouridis, Christian"]
[Result "1-0"]
[TimeControl "90 minutes + 30 seconds"]
[WhiteElo "1811"]
[BlackElo "1713"]

1. c4 {[%clk 01:30:55]} {[%emt 00:00:04]} e5 {[%clk 01:30:56]} {[%emt
00:00:34]} 2. g3 {[%clk 01:31:20]} {[%emt 00:00:05]} Nf6 {[%clk 01:31:22]}
{[%emt 00:00:04]} 3. Bg2 {[%clk 01:31:46]} {[%emt 00:00:04]} d5 {[%clk
01:31:47]} {[%emt 00:00:06]} 4. cxd5 {[%clk 01:32:09]} {[%emt 00:00:07]} Nxd5
{[%clk 01:32:09]} {[%emt 00:00:07]} 5. Nf3 {[%clk 01:32:31]} {[%emt 00:00:08]}
Nc6 {[%clk 01:32:32]} {[%emt 00:00:07]} 6. O-O {[%clk 01:32:54]} {[%emt
00:00:07]} Nb6 {[%clk 01:32:50]} {[%emt 00:00:13]} 7. Nc3 {[%clk 01:32:53]}
{[%emt 00:00:30]} Be7 {[%clk 01:33:07]} {[%emt 00:00:13]} 8. b3 {[%clk
01:32:08]} {[%emt 00:01:15]} f5 {[%clk 01:31:09]} {[%emt 00:02:29]} 9. d3
{[%clk 01:30:16]} {[%emt 00:02:22]} Be6 {[%clk 01:28:59]} {[%emt 00:02:39]} 10.
Bb2 {[%clk 01:28:52]} {[%emt 00:01:54]} g5 {[%clk 01:25:29]} {[%emt 00:04:01]}
11. Nd2 {[%clk 01:22:18]} {[%emt 00:07:03]} h5 {[%clk 01:22:54]} {[%emt
00:03:05]} 12. Nc4 {[%clk 01:20:02]} {[%emt 00:02:46]} Nxc4 {[%clk 01:17:30]}
{[%emt 00:05:55]} 13. dxc4 {[%clk 01:20:17]} {[%emt 00:00:14]} Qxd1 {[%clk
01:17:04]} {[%emt 00:00:55]} 14. Raxd1 {[%clk 01:19:24]} a6 {[%clk 01:16:52]}
{[%emt 00:02:07]} 15. Nd5 {[%clk 01:19:42]} {[%emt 00:00:12]} Bd6 {[%clk
01:15:34]} {[%emt 00:01:47]} 16. c5 {[%clk 01:17:09]} {[%emt 00:03:03]} Bxd5
{[%clk 01:14:05]} {[%emt 00:02:00]} 17. Rxd5 {[%clk 01:16:48]} {[%emt
00:00:50]} Ne7 {[%clk 01:09:42]} {[%emt 00:04:53]} 18. cxd6 {[%clk 01:16:59]}
{[%emt 00:00:19]} Nxd5 {[%clk 01:09:31]} {[%emt 00:00:41]} 19. Bxd5 {[%clk
01:17:22]} {[%emt 00:00:07]} cxd6 {[%clk 01:09:48]} {[%emt 00:00:14]} 20. Bxb7
{[%clk 01:17:37]} {[%emt 00:00:15]} Ra7 {[%clk 01:09:37]} {[%emt 00:00:40]} 21.
Rc1 {[%clk 01:16:30]} {[%emt 00:01:36]} Kd7 {[%clk 01:07:56]} {[%emt 00:02:12]}
22. Bd5 {[%clk 01:16:19]} {[%emt 00:00:39]} f4 {[%clk 01:06:38]} {[%emt
00:01:50]} 23. Ba3 {[%clk 01:13:56]} {[%emt 00:02:52]} Rc7 {[%clk 01:04:55]}
{[%emt 00:02:14]} 24. Be6+ {[%clk 01:13:10]} {[%emt 00:01:16]} Kd8 {[%clk
01:05:01]} {[%emt 00:00:24]} 25. Rd1 {[%clk 01:13:19]} {[%emt 00:00:21]} Rc6
{[%clk 01:04:48]} {[%emt 00:00:43]} 26. Bf5 {[%clk 01:11:48]} {[%emt 00:02:01]}
Ke7 {[%clk 01:00:20]} {[%emt 00:04:58]} 27. Rd5 {[%clk 01:09:15]} {[%emt
00:03:03]} Kf6 {[%clk 00:59:25]} {[%emt 00:01:25]} 28. Be4 {[%clk 00:54:41]}
{[%emt 00:15:04]} Rd8 {[%clk 00:52:50]} {[%emt 00:07:04]} 29. Kf1 {[%clk
00:50:03]} {[%emt 00:05:09]} h4 {[%clk 00:49:46]} {[%emt 00:03:33]} 30. g4
{[%clk 00:48:33]} {[%emt 00:02:01]} Ke6 {[%clk 00:46:39]} {[%emt 00:03:36]} 31.
Rd2 {[%clk 00:38:58]} {[%emt 00:10:06]} Rc7 {[%clk 00:43:18]} {[%emt 00:03:50]}
32. Bf5+ {[%clk 00:32:44]} {[%emt 00:06:44]} Ke7 {[%clk 00:42:38]} {[%emt
00:01:10]} 33. Rd5 {[%clk 00:30:56]} {[%emt 00:02:18]} Rc6 {[%clk 00:42:21]}
{[%emt 00:00:47]} 34. Rxe5+ {[%clk 00:30:51]} {[%emt 00:00:36]} Kf7 {[%clk
00:41:37]} {[%emt 00:01:13]} 35. Rd5 {[%clk 00:28:25]} {[%emt 00:02:56]} Rc3
{[%clk 00:40:12]} {[%emt 00:01:52]} 36. Rxd6 {[%clk 00:26:18]} {[%emt
00:02:40]} Rxd6 {[%clk 00:40:16]} {[%emt 00:00:26]} 37. Bxd6 {[%clk 00:26:39]}
{[%emt 00:00:09]} Rc1+ {[%clk 00:40:35]} {[%emt 00:00:11]} 38. Kg2 {[%clk
00:27:00]} {[%emt 00:00:09]} Ra1 {[%clk 00:40:29]} {[%emt 00:00:36]} 39. a4
{[%clk 00:26:41]} {[%emt 00:00:49]} Rc1 {[%clk 00:40:20]} {[%emt 00:00:38]} 40.
Bd3 {[%clk 00:26:56]} {[%emt 00:00:16]} Rc3 {[%clk 00:40:26]} {[%emt 00:00:23]}
41. Be5 {[%clk 00:26:22]} {[%emt 00:01:06]} Rc5 {[%clk 00:39:56]} {[%emt
00:00:57]} 42. Bd4 {[%clk 00:25:43]} {[%emt 00:01:11]} Rc6 {[%clk 00:39:47]}
{[%emt 00:00:38]} 43. b4 {[%clk 00:25:35]} {[%emt 00:00:39]} 1-0

[Event "ONJK 2024 ABC"]
[Site "Velp, Netherlands"]
[Date "2024.08.06"]
[Round "6.19"]
[White "Koorevaar, Sarah-Joy"]
[Black "Hardeman, Imara"]
[Result "1-0"]
[TimeControl "90 minutes + 30 seconds"]
[WhiteElo "1531"]
[BlackElo "1549"]

1. d4 {[%clk 01:30:59]} {[%emt 00:00:01]} c6 {[%clk 01:31:20]} {[%emt
00:00:10]} 2. e4 {[%clk 01:31:14]} {[%emt 00:00:15]} d5 {[%clk 01:31:46]}
{[%emt 00:00:04]} 3. e5 {[%clk 01:31:22]} {[%emt 00:00:22]} Bf5 {[%clk
01:32:09]} {[%emt 00:00:07]} 4. Nf3 {[%clk 01:31:23]} {[%emt 00:00:28]} e6
{[%clk 01:32:24]} {[%emt 00:00:16]} 5. g3 {[%clk 01:31:41]} {[%emt 00:00:12]}
Nd7 {[%clk 01:32:03]} {[%emt 00:00:51]} 6. Bg2 {[%clk 01:31:54]} {[%emt
00:00:16]} Ne7 {[%clk 01:32:12]} {[%emt 00:00:22]} 7. O-O {[%clk 01:31:43]}
{[%emt 00:00:41]} Ng6 {[%clk 01:31:26]} {[%emt 00:01:17]} 8. Nc3 {[%clk
01:30:06]} {[%emt 00:02:06]} Be7 {[%clk 01:30:53]} {[%emt 00:01:04]} 9. Re1
{[%clk 01:25:06]} {[%emt 00:05:29]} O-O {[%clk 01:31:03]} {[%emt 00:00:20]} 10.
b3 {[%clk 01:18:10]} {[%emt 00:07:26]} a6 {[%clk 01:28:22]} {[%emt 00:03:12]}
11. a3 {[%clk 01:09:08]} {[%emt 00:09:32]} c5 {[%clk 01:27:03]} {[%emt
00:01:49]} 12. Qe2 {[%clk 01:03:38]} {[%emt 00:05:59]} cxd4 {[%clk 01:24:41]}
{[%emt 00:02:52]} 13. Nxd4 {[%clk 01:03:59]} {[%emt 00:00:10]} Ndxe5 {[%clk
01:20:50]} {[%emt 00:04:18]} 14. Nxf5 {[%clk 01:04:15]} {[%emt 00:00:16]} exf5
{[%clk 01:20:59]} {[%emt 00:00:20]} 15. Bxd5 {[%clk 01:01:40]} {[%emt
00:03:05]} Rc8 {[%clk 01:19:14]} {[%emt 00:02:15]} 16. Bb2 {[%clk 01:00:01]}
{[%emt 00:02:08]} Nc6 {[%clk 01:16:50]} {[%emt 00:02:54]} 17. Qf3 {[%clk
00:44:58]} {[%emt 00:15:34]} Qd7 {[%clk 01:06:32]} {[%emt 00:10:49]} 18. Rad1
{[%clk 00:43:50]} {[%emt 00:01:37]} Bd6 {[%clk 00:59:12]} {[%emt 00:07:50]} 19.
Na4 {[%clk 00:37:39]} {[%emt 00:06:41]} Qc7 {[%clk 00:54:17]} {[%emt 00:05:26]}
20. Qxf5 {[%clk 00:36:31]} {[%emt 00:01:36]} Nce7 {[%clk 00:52:37]} {[%emt
00:02:10]} 21. Qe4 {[%clk 00:30:30]} {[%emt 00:06:30]} Nxd5 {[%clk 00:49:59]}
{[%emt 00:03:10]} 22. Qxd5 {[%clk 00:29:56]} {[%emt 00:01:04]} Rfd8 {[%clk
00:48:50]} {[%emt 00:01:39]} 23. Qf3 {[%clk 00:24:14]} {[%emt 00:06:10]} b5
{[%clk 00:44:33]} {[%emt 00:04:49]} 24. Qc3 {[%clk 00:21:53]} {[%emt 00:02:50]}
Qxc3 {[%clk 00:40:33]} {[%emt 00:04:31]} 25. Nxc3 {[%clk 00:22:15]} {[%emt
00:00:08]} Be5 {[%clk 00:39:27]} {[%emt 00:01:36]} 26. Rxd8+ {[%clk 00:18:39]}
{[%emt 00:04:05]} Rxd8 {[%clk 00:39:36]} {[%emt 00:00:21]} 27. Nd1 {[%clk
00:18:16]} {[%emt 00:00:53]} Bxb2 {[%clk 00:38:02]} {[%emt 00:02:05]} 28. Nxb2
{[%clk 00:18:35]} {[%emt 00:00:11]} Rd2 {[%clk 00:38:11]} {[%emt 00:00:20]} 29.
Re8+ {[%clk 00:16:38]} {[%emt 00:02:26]} Nf8 {[%clk 00:38:36]} {[%emt
00:00:06]} 30. Rc8 {[%clk 00:16:41]} {[%emt 00:00:28]} g6 {[%clk 00:37:41]}
{[%emt 00:01:25]} 31. Kf1 {[%clk 00:15:28]} {[%emt 00:01:42]} Rd6 {[%clk
00:35:28]} {[%emt 00:02:43]} 32. Nd3 {[%clk 00:13:51]} {[%emt 00:02:07]} Kg7
{[%clk 00:34:35]} {[%emt 00:01:24]} 33. Ra8 {[%clk 00:13:38]} {[%emt 00:00:42]}
Ne6 {[%clk 00:34:48]} {[%emt 00:00:17]} 34. Ra7 {[%clk 00:13:18]} {[%emt
00:00:50]} Kf6 {[%clk 00:34:24]} {[%emt 00:00:55]} 35. Nb4 {[%clk 00:11:10]}
{[%emt 00:02:38]} Nc5 {[%clk 00:33:39]} {[%emt 00:01:15]} 36. Ke2 {[%clk
00:08:42]} {[%emt 00:02:57]} Ke6 {[%clk 00:31:44]} {[%emt 00:02:25]} 37. Ke3
{[%clk 00:06:38]} {[%emt 00:02:34]} h5 {[%clk 00:30:06]} {[%emt 00:02:08]} 38.
Rc7 {[%clk 00:04:33]} {[%emt 00:02:34]} Nd7 {[%clk 00:29:00]} {[%emt 00:01:38]}
39. Rc6 {[%clk 00:04:40]} {[%emt 00:00:23]} Rxc6 {[%clk 00:26:48]} {[%emt
00:02:42]} 40. Nxc6 {[%clk 00:05:06]} {[%emt 00:00:04]} f5 {[%clk 00:26:10]}
{[%emt 00:01:08]} 41. b4 {[%clk 00:04:56]} {[%emt 00:00:41]} g5 {[%clk
00:25:01]} {[%emt 00:01:39]} 42. Nd4+ {[%clk 00:03:37]} {[%emt 00:01:48]} Kf6
{[%clk 00:24:39]} {[%emt 00:00:52]} 43. f4 {[%clk 00:03:44]} {[%emt 00:00:22]}
g4 {[%clk 00:22:13]} {[%emt 00:02:57]} 44. Kd3 {[%clk 00:03:48]} {[%emt
00:00:26]} Nb6 {[%clk 00:20:43]} {[%emt 00:02:01]} 45. Nc6 {[%clk 00:03:24]}
{[%emt 00:00:53]} Nd7 {[%clk 00:18:55]} {[%emt 00:02:19]} 46. c4 {[%clk
00:03:31]} {[%emt 00:00:23]} Ke6 {[%clk 00:16:40]} {[%emt 00:02:45]} 47. Nd4+
{[%clk 00:03:31]} {[%emt 00:00:30]} Kf6 {[%clk 00:15:51]} {[%emt 00:01:19]} 48.
cxb5 {[%clk 00:03:53]} {[%emt 00:00:07]} axb5 {[%clk 00:16:06]} {[%emt
00:00:15]} 49. Nxb5 {[%clk 00:04:19]} {[%emt 00:00:04]} Ke6 {[%clk 00:15:31]}
{[%emt 00:01:05]} 50. Nd4+ {[%clk 00:04:40]} {[%emt 00:00:09]} Kf6 {[%clk
00:15:05]} {[%emt 00:00:56]} 51. a4 {[%clk 00:04:34]} {[%emt 00:00:37]} Nb6
{[%clk 00:14:58]} {[%emt 00:00:37]} 52. a5 {[%clk 00:04:25]} {[%emt 00:00:39]}
Nd5 {[%clk 00:14:55]} {[%emt 00:00:32]} 53. Kc4 {[%clk 00:04:34]} {[%emt
00:00:21]} Nc7 {[%clk 00:14:36]} {[%emt 00:00:50]} 54. b5 {[%clk 00:04:32]}
{[%emt 00:00:32]} Ke7 {[%clk 00:14:09]} {[%emt 00:00:56]} 55. Nxf5+ {[%clk
00:04:43]} {[%emt 00:00:19]} 1-0